{"text_format":"3","workbook":"xlsx","n_sheets":5,"sheets":["Menu","Anagrafica Impianto","Flussi da programmazione","ModPef_IMP","Tendina"],"not_rendered":{"defined_names":25},"read":"whole","date_system":"1900"}

{"sheet":"Menu","index":0,"n_rows":22,"n_cols":3,"rows_kept":22,"merged":[[3,1,3,2],[4,1,6,2]]}
[null,"Indice dei fogli, indicazioni per la compilazione e legenda celle di compilazione"]
[]
[]
[null,"Tipologia di impianti oggetto della compilazione"]
[null,"La compilazione del presente file è destinata alle seguenti tipologie di impianti:\nimpianti MINIMI\nimpianti MINIMI IN PARTE\nimpianti INTERMEDI da cui provengono flussi in entrata a impianti minimi\n\n"]
[]
[]
[]
[]
[]
[null,"Foglio","Breve descrizione dei contenuti"]
[null,"Anagrafica Impianto","Informazioni relative alla denominazione, alla localizzazione, alla tipologia e al gestore dell'impianto, nonché indicazione relativa al soggetto competente"]
[null,"Flussi da programmazione","Informazioni relative ai flussi trattati dagli impianti con dettaglio dei flussi soggetti a regolazione"]
[null,"ModPEF_IMP","Piano economico-finanziario dell'impianto"]
[]
[]
[null,"LEGENDA"]
[null,null,"cella compilabile"]
[null,null,"Selezionare voce da menu a tendina"]
[null,null,"formule"]
[null,null,"cella non compilabile"]
[null," "]

{"sheet":"Anagrafica Impianto","index":1,"n_rows":22,"n_cols":4,"rows_kept":22,"merged":[[6,2,6,3],[9,2,13,2],[14,2,14,3],[18,2,18,3],[19,2,19,3],[20,2,20,3],[21,2,21,3]]}
[]
[null,"ANAGRAFICA IMPIANTO"]
[]
[]
[null,"DENOMINAZIONE E LOCALIZZAZIONE IMPIANTO"]
[]
[null,null,"DENOMINAZIONE IMPIANTO"]
[{"$nulls":3},"Tipo di Impianto"]
[{"$nulls":3},"Categoria Impianto"]
[null,null,"localizzazione impianto","Regione"]
[{"$nulls":3},"Provincia"]
[{"$nulls":3},"Comune "]
[{"$nulls":3},"Codice istat Comune"]
[{"$nulls":3},"Indirizzo"]
[null,null,"Soggetto competente ai sensi del c. 7.2 del. 397/2025/R/rif \n(Regione o altro Ente dalla stessa individuato)"]
[]
[null,"GESTORE IMPIANTO"]
[]
[null,null,"Gestore dell'impianto (ragione sociale) "]
[null,null,"partita IVA"]
[null,null,"codice fiscale"]
[null,null,"natura giuridica del gestore"]

{"sheet":"Flussi da programmazione","index":2,"n_rows":38,"n_cols":7,"rows_kept":38,"merged":[[5,1,5,2],[6,1,6,2],[7,1,7,2],[8,1,8,2],[11,1,11,2],[12,1,12,2],[13,1,13,2],[14,1,14,2],[15,1,15,2],[16,1,16,2],[17,1,17,2],[20,3,21,4],[25,1,25,2],[26,1,26,2],[27,1,27,2],[28,1,28,2],[29,1,29,2],[32,1,32,2],[33,1,33,2],[34,1,34,2],[35,1,35,2]]}
[]
[null," FLUSSI DA PROGRAMMAZIONE"]
[]
[null,"IMPIANTI DI RECUPERO O SMALTIMENTO"]
[]
[null,"Previsione rifiuti totali trattati dall'impianto",null,"2026","2027","2028","2029"]
[null," Rifiuti Urbani e da trattatamento Rifiuti Urbani [t/a]"]
[null," Rifiuti Speciali*[t/a]"]
[null,"Previsione Rifiuti totali trattati nell'impianto [t/a]",null,{"$f":"+D7+D8","v":0},{"$f":"+E7+E8","v":0},{"$f":"+F7+F8","v":0},0]
[null,"(*) Inserire il quantitativo di rifiuti speciali al netto dei rifiuti da trattamento RU; compilare se stima disponibile"]
[]
[null,"Dettaglio flussi rifiuti urbani e da trattamento urbani",null,"2026","2027","2028","2029"]
[null,"Previsione dei flussi di rifiuti urbani e da trattamento urbani classificabili come \"minimi\"  [t/a]"]
[null,"di cui quantità corrispondente ai flussi assoggettati a regolazione e provenienti da aree di prossimità rispetto agli impianti qP,a [t/a] "]
[null,"di cui quantità corrispondente ai flussi assoggettati a regolazione e provenienti da aree di non prossimità rispetto agli impianti  qnp,a [t/a]",null,{"$f":"IF(D14=0,0,IF(D13-D14<0,0,D13-D14))","v":0},{"$f":"IF(E14=0,0,IF(E13-E14<0,0,E13-E14))","v":0},0,0]
[null,"Previsione dei flussi di rifiuti urbani e da trattamento urbani classificabili come \"integrati\" [t/a]"]
[null,"Previsione dei flussi di rifiuti urbani classificabili come \"aggiuntivi\"  [t/a]"]
[null,"Totale previsione Rifiuti Urbani e da trattatamento Rifiuti Urbani [t/a]",null,{"$f":"+D13+D16+D17","v":0},{"$f":"+E13+E16+E17","v":0},{"$f":"+F13+F16+F17","v":0},0]
[]
[null,null,"CHECK",{"$f":"+D18=D7","v":true},{"$f":"+E18=E7","v":true},{"$f":"+F18=F7","v":true},true]
[{"$nulls":3},"Se il valore restituisce \"FALSO\" controllare che le somme della riga 18 coincidano con le somme della riga 7"]
[]
[]
[null,"IMPIANTI INTERMEDI DA CUI PROVENGANO FLUSSI IN ENTRATA A IMPIANTI MINIMI"]
[]
[null,"Previsione Rifiuti urbani o da trattamento urbani in ingresso all'impianto intermedio",null,"2026","2027","2028","2029"]
[null," Rifiuti Urbani e da trattatamento Rifiuti Urbani  [t/a]"]
[null,"di cui assoggettati a regolazione per la quota corrispondente all'incidenza dei flussi in ingresso a impianti di chiusura del ciclo minimi  sulla quantità totale trattata  [t/a]"]
[null," Rifiuti Speciali*[t/a]"]
[null,"Totale previsione Rifiuti in ingresso all'impianto intermedio [t/a]",null,{"$f":"+D27+D29","v":0},{"$f":"+E27+E29","v":0},{"$f":"+F27+F29","v":0},0]
[null,"(*) Inserire il quantitativo di rifiuti speciali al netto dei rifiuti da trattamento RU; compilare se stima disponibile"]
[]
[null,"Previsione quantitativi rifiuti in uscita dagli impianti intermedi",null,"2026","2027","2028","2029"]
[null,"Previsione flussi di rifiuti in uscita conferiti ad impianti classificati come \"minimi\" [t/a]"]
[null,"Previsione flussi di rifiuti in uscita conferiti ad impianti non classificati come \"minimi\" [t/a]"]
[null,"Totale previsione rifiuti in uscita dall'impianto [t/a]",null,{"$f":"+D34+D35","v":0},{"$f":"+E34+E35","v":0},0,0]
[]
[null,null,"CHECK",{"$f":"IF(AND(D28=0,D34=0),\"VERO\",IF(AND(D34<D28,D34>0),\"VERO\",\"verificare quantitativi inseriti\"))","v":"VERO"},{"$f":"IF(AND(E28=0,E34=0),\"VERO\",IF(AND(E34<E28,E34>0),\"VERO\",\"verificare quantitativi inseriti\"))","v":"VERO"},{"$f":"IF(AND(F28=0,F34=0),\"VERO\",IF(AND(F34<F28,F34>0),\"VERO\",\"verificare quantitativi inseriti\"))","v":"VERO"},"VERO"]

{"sheet":"ModPef_IMP","index":3,"n_rows":86,"n_cols":12,"rows_kept":86,"merged":[[0,1,0,4],[3,3,3,6],[4,3,4,6],[5,9,5,14],[12,9,12,14],[18,9,18,14],[19,9,19,14],[20,9,20,14],[21,9,21,14],[25,9,25,14],[31,9,31,14],[49,9,49,14],[78,9,78,14]]}
[null,"PEF Impianti di chiusura del ciclo \"minimi\", \"minimi in parte\" e impianti \"intermedi\" da cui provengono flussi indicati come in ingresso a impianti di chiusura del ciclo minimi - 2026-2029"]
[]
[]
[{"$nulls":3},{"$f":"+'Anagrafica Impianto'!E19","v":0}]
[{"$nulls":3},{"$f":"+'Anagrafica Impianto'!E7","v":0}]
[null,"COSTI OPERATIVI ai sensi del MTR-3 (euro)",null,"2026","2027","2028","2029",null,null,"NOTE PER LA COMPILAZIONE E CHECK"]
[null,"B6) Per materie prime, sussidiarie, di consumo e merci"]
[null,"B7) Per servizi"]
[null,"B8) Per godimento beni di terzi"]
[null,"B9) Per il personale"]
[null,"B11) Variazione delle rimanenze"]
[null,"B14) Oneri diversi di gestione"]
[null,"Altri costi   COAL"]
[null,"Totale Costi Operativi (euro)",null,{"$f":"+SUM(D7:D13)","v":0},{"$f":"+SUM(E7:E13)","v":0},{"$f":"+SUM(F7:F13)","v":0},0]
[]
[null,"COSTI PREVISIONALI  ai sensi dell'MTR-3 (euro)",null,"2026","2027","2028","2029"]
[null,"Costi operativi incentivanti di cui all'articolo 10 del MTR-3  COIEXP"]
[null,"Costi operativi incentivanti di cui all'articolo 10 del MTR-3   COnewEXP"]
[null,"Costi operativi aventi natura di anticipazione di cui all'articolo 17.2 del MTR-3   ∆CTS"]
[null,"Costi operativi aventi natura di anticipazione di cui all'articolo 17.5 del MTR-3   COANT"]
[null,"Costi previsionali operativi discarica",{"$nulls":7},"Consentita la compilazione solo per i gestori della discarica"]
[null,"Costi previsionali di capitale discarica ",{"$nulls":7},"Consentita la compilazione solo per i gestori della discarica"]
[null,"Totale Costi Previsionali (euro)",null,{"$f":"+SUM(D17:D22)","v":0},{"$f":"+SUM(E17:E22)","v":0},{"$f":"+SUM(F17:F22)","v":0},{"$f":"+SUM(G17:G22)","v":0}]
[]
[null,"COSTI D'USO DEL CAPITALE ai sensi del MTR-3 (euro)",null,"2026","2027","2028","2029"]
[null,"                  Ammortamenti   Amm",{"$nulls":7},"Il Fondo di Ammortamento di partenza per il calcolo dei costi di capitale è il Fondo di Ammortamento presente in bilancio al 31/12/2023. Nel caso di impianto parzialmente minimo e parzialmente integrato, considerare opportunamente i dati di input per la quota parte attribuibile ai flussi minimi."]
[null,"                  Accantonamenti   Acc",null,{"$f":"+D28+D29+D30+D31","v":0},{"$f":"+E28+E29+E30+E31","v":0},{"$f":"+F28+F29+F30+F31","v":0},0]
[null,"                        - di cui costi di gestione post-operativa delle discariche"]
[null,"                        - di cui per crediti"]
[null,"                        - di cui per rischi e oneri previsti da normativa di settore e/o dal contratto di affidamento"]
[null,"                        - di cui per altri non in eccesso rispetto a norme tributarie"]
[null,"               Remunerazione del capitale investito netto   R",{"$nulls":7},"Il time lag pari all'1% si applica sugli investimenti realizzati successivamente al 31/12/2023. Nel caso di impianto parzialmente minimo e parzialmente integrato, considerare opportunamente i dati di input per la quota parte attribuibile ai flussi minimi."]
[null,"               Remunerazione delle immobilizzazioni in corso   RLIC"]
[null,"               Costi d'uso del capitale di cui all'art. 13.11 del MTR-3    CKproprietari"]
[null,"Costi d'uso del capitale   CK (euro)",null,{"$f":"+D26+D27+D32+D33+D34","v":0},{"$f":"+E26+E27+E32+E33+E34","v":0},{"$f":"+F26+F27+F32+F33+F34","v":0},0]
[]
[null,"IVA Indetrabile (euro)"]
[]
[null,"Scostamento tra i ricavi relativi alle quantità previste nell’ambito delle attività di programmazione e quelli\neffettivamente conseguiti sulla base di quanto conferito nelle medesime annualità - RCton (euro)"]
[]
[null,"Vincolo ai Ricavi dell'Impianto, VRIa (euro)",null,{"$f":"+D35+D23+D14+D37+D39","v":0},{"$f":"+E35+E23+E14+E37+E39","v":0},{"$f":"+F35+F23+F14+F37+F39","v":0},{"$f":"+G35+G23+G14+G37+G39","v":0},null,null,"Totale Rimodulato"]
[null,"Rimodulazioni Delta VRI calcolato e VRI massimo (periodo regolatorio 2024-2025) rinviato post 2025 - (euro)",{"$nulls":7},{"$f":"+SUM(D42:G42)","v":0},"La somma non deve superare quanto rinviato post 2025 nelle predisposizioni tariffarie 2024-2025."]
[null,"Rimodulazioni Delta VRI calcolato e VRI massimo applicabile (euro)",null,null,{"$f":"+E67","v":0},{"$f":"+F67","v":0},0]
[null,"Rinunce (Cfr. art. 5.9 delibera 397/2025/R/rif) (euro)"]
[null,"VRIa calcolato (euro)",null,{"$f":"+D41+D42+D43-D44","v":0},{"$f":"+E41+E42+E43-E44","v":0},{"$f":"+F41+F42+F43-F44","v":0},{"$f":"+G41+G42+G43-G44","v":0}]
[]
[null,"Limite alla crescita annuale delle tariffe di accesso agli impianti"]
[{"$nulls":3},"2026","2027","2028","2029"]
[null,"VRIa calcolato (euro)",null,{"$f":"+D45","v":0},{"$f":"+E45","v":0},0,0]
[null,"RI_TRA2025 (euro)",null,null,{"$f":"+D50","v":0},{"$f":"+E50","v":0},0]
[null,"τa calcolato",null,{"$f":"+IFERROR(D49/D50,0)","v":0},{"$f":"+IFERROR(E49/E50,0)","v":0},{"$f":"+IFERROR(F49/F50,0)","v":0},0]
[null,"τa-1",null,{"v":1,"d":"1.000"},{"$f":"+D60","v":0},{"$f":"+E60","v":0},0]
[]
[null,"τa/τa-1",null,{"$f":"IFERROR(D51/D52,\"\")","v":0},{"$f":"IFERROR(E51/E52,\"\")","v":""},{"$f":"IFERROR(F51/F52,\"\")","v":""},""]
[]
[null,"rpia",null,{"v":0.019,"d":"1.90%"},{"$f":"+D56","v":{"v":0.019,"d":"1.90%"}},{"$f":"+E56","v":{"v":0.019,"d":"1.90%"}},{"v":0.019,"d":"1.90%"}]
[null,"Ka"]
[null,"ρτa",null,{"$f":"+D56+D57","v":{"v":0.019,"d":"1.90%"}},{"$f":"+E56+E57","v":{"v":0.019,"d":"1.90%"}},{"$f":"+F56+F57","v":{"v":0.019,"d":"1.90%"}},{"v":0.019,"d":"1.90%"}]
[null,"1+ρτa",null,{"$f":"(1+D58)","v":1.019},{"$f":"(1+E58)","v":1.019},1.019,1.019]
[null,"τa,max (limite annuale di crescita)",null,{"$f":"MIN(D59*D52,D51)","v":0},{"$f":"MIN(E59*E52,E51)","v":0},{"$f":"MIN(F59*F52,F51)","v":0},0]
[]
[null,"VRIa,max (Vincolo ai Ricavi dell'Impianto massimo applicabile nel rispetto del limite annuale di crescita) - euro",null,{"$f":"+MIN(D45,D50*D60)","v":0},{"$f":"+MIN(E45,E50*E60)","v":0},{"$f":"+MIN(F45,F50*F60)","v":0},0]
[]
[null,"Delta (VRIa calcolato - VRIa,max) - euro",null,{"$f":"+D49-D62","v":0},{"$f":"+E49-E62","v":0},{"$f":"+F49-F62","v":0},0]
[]
[{"$nulls":3},"2026","2027","2028","2029"]
[null,"Delta (VRIa calcolato -VRIa,max) da recuperare nell'anno a - euro",null,null,{"$f":"+E70","v":0},{"$f":"+SUM(F70:F71)","v":0},{"$f":"+SUM(G70:G72)","v":0},null,null,"CHECK",null,"CHECK - quota da rimodulare"]
[]
[]
[null,"Rimodulazione Delta (VRI2026,calcolato - VRI2026,max) - euro",{"$nulls":7},{"$f":"+IF(ROUND(SUM(E70:H70),0)=ROUND(D64,0),\"Ok - Rimodulazione completa\",IF(ROUND(SUM(E70:H70),0)<ROUND(D64,0),\"Totale da rimodulare inferiore al delta\",IF(ROUND(SUM(E70:H70),0)>ROUND(D64,0),\"Totale da rimodulare superiore al delta\")))","v":"Ok - Rimodulazione completa"},null,{"$f":"ROUND(D64,0)-ROUND(SUM(E70:G70),0)","v":0}]
[null,"Rimodulazione Delta (VRI2027,calcolato - VRI2027,max) - euro",{"$nulls":7},{"$f":"+IF(ROUND(SUM(F71:H71),0)=ROUND(E64,0),\"Ok - Rimodulazione completa\",IF(ROUND(SUM(F71:H71),0)<ROUND(E64,0),\"Totale da rimodulare inferiore al delta\",IF(ROUND(SUM(F71:H71),0)>ROUND(E64,0),\"Totale da rimodulare superiore al delta\")))","v":"Ok - Rimodulazione completa"},null,{"$f":"ROUND(E64,0)-ROUND(SUM(F71:G71),0)","v":0}]
[null,"Rimodulazione Delta (VRI2028,calcolato - VRI2028,max) - euro",{"$nulls":7},{"$f":"+IF(ROUND(SUM(G72:H72),0)=ROUND(F64,0),\"Ok - Rimodulazione completa\",IF(ROUND(SUM(G72:H72),0)<ROUND(F64,0),\"Totale da rimodulare inferiore al delta\",IF(ROUND(SUM(G72:H72),0)>ROUND(F64,0),\"Totale da rimodulare superiore al delta\")))","v":"Ok - Rimodulazione completa"},null,{"$f":"ROUND(F64,0)-ROUND(SUM(G72),0)","v":0}]
[]
[]
[null,"τa,max finale",null,{"$f":"MIN(D59*D52,D51)","v":0},{"$f":"MIN(E59*E52,E51)","v":0},{"$f":"MIN(F59*F52,F51)","v":0},0]
[null,"VRIa,max finale - euro",null,{"$f":"+MIN(D45,D50*D60)","v":0},{"$f":"+MIN(E45,E50*E60)","v":0},{"$f":"+MIN(F45,F50*F60)","v":0},0]
[]
[{"$nulls":3},"2026","2027","2028","2029"]
[null,"Quantità totale corrispondente ai flussi assoggettati a regolazione qmin,a[t/a]",null,{"$f":"+'Flussi da programmazione'!D13","v":0},{"$f":"+'Flussi da programmazione'!E13","v":0},{"$f":"+'Flussi da programmazione'!F13","v":0},{"$f":"+'Flussi da programmazione'!G13","v":0},null,null,"Si specifica che i quantitativi previsionali sono richiesti ai fini del calcolo del τP,a e del τnP,a"]
[]
[null,"La sezione che segue si valorizza nel caso in cui sia stata effettuata la distinzione tra flussi di prossimità e non prossimità nel foglio \"Flussi da programmazione\""]
[null,"Quantità corrispondente ai flussi assoggettati a regolazione e provenienti da aree di prossimità rispetto agli impianti qP,a [t/a] ",null,{"$f":"IF('Flussi da programmazione'!D15=0,0,'Flussi da programmazione'!D14)","v":0},{"$f":"IF('Flussi da programmazione'!E15=0,0,'Flussi da programmazione'!E14)","v":0},{"$f":"IF('Flussi da programmazione'!F15=0,0,'Flussi da programmazione'!F14)","v":0},{"$f":"IF('Flussi da programmazione'!G15=0,0,'Flussi da programmazione'!G14)","v":0}]
[null,"Quantità corrispondente ai flussi assoggettati a regolazione e provenienti da aree di non prossimità rispetto agli impianti  qnp,a [t/a]",null,{"$f":"+'Flussi da programmazione'!D15","v":0},{"$f":"+'Flussi da programmazione'!E15","v":0},{"$f":"+'Flussi da programmazione'!F15","v":0},{"$f":"+'Flussi da programmazione'!G15","v":0}]
[]
[null,"τP,a",null,{"$f":"IF((OR(D82=0,D83=0)),\"\",IF(D60>1,1,(D60-(D83*(1-D60))/D82)))","v":""},{"$f":"IF((OR(E82=0,E83=0)),\"\",IF(E60>1,1,(E60-(E83*(1-E60))/E82)))","v":""},{"$f":"IF((OR(F82=0,F83=0)),\"\",IF(F60>1,1,(F60-(F83*(1-F60))/F82)))","v":""},{"$f":"IF((OR(G82=0,G83=0)),\"\",IF(G60>1,1,(G60-(G83*(1-G60))/G82)))","v":""}]
[null,"τnP,a",null,{"$f":"IF((OR(D82=0,D83=0)),\"\",IF(D60<=1,1,(D60+(D82*(D60-1))/D83)))","v":""},{"$f":"IF((OR(E82=0,E83=0)),\"\",IF(E60<=1,1,(E60+(E82*(E60-1))/E83)))","v":""},{"$f":"IF((OR(F82=0,F83=0)),\"\",IF(F60<=1,1,(F60+(F82*(F60-1))/F83)))","v":""},{"$f":"IF((OR(G82=0,G83=0)),\"\",IF(G60<=1,1,(G60+(G82*(G60-1))/G83)))","v":""}]

{"sheet":"Tendina","index":4,"n_rows":50,"n_cols":22,"rows_kept":50,"hidden":true}
[]
[null,null,"Categoria",null,null,"Tipo",null,"Recupero","Smaltimento","Intermedio"]
[null,null,"Compostaggio",null,null,"Recupero",null,"Compostaggio","Incenerimento senza recupero di energia D10","Trattamento Meccanico Biologico"]
[null,null,"Digestione Anaerobica",null,null,"Smaltimento",null,"Digestione Anaerobica","Discarica","Trattamento Meccanico"]
[null,null,"Integrato Aerobico/Anaerobico",null,null,"Intermedio",null,"Integrato Aerobico/Anaerobico"]
[null,null,"Incenerimento con recupero di energia R1",{"$nulls":4},"Incenerimento con recupero di energia R1"]
[null,null,"Incenerimento senza recupero di energia D10"]
[null,null,"Trattamento Meccanico Biologico"]
[null,null,"Trattamento Meccanico"]
[null,null,"Discarica"]
[null,null,"Altro (specificare in nota)",null,null,"Ragione Sociale"]
[{"$nulls":5},"Azienda speciale"]
[{"$nulls":5},"Azienda speciale consortile"]
[null,null,"Regione",null,null,"Consorzio"]
[null,null,"Piemonte",null,null,"Gestione in economia"]
[null,null,"Valle_dAosta",null,null,"Società a responsabilità limitata (S.r.l.)"]
[null,null,"Lombardia",null,null,"Società consortile S.p.A."]
[null,null,"Trentino_Alto_Adige",null,null,"Società consortile S.r.l."]
[null,null,"Veneto",null,null,"Società cooperativa a r.l."]
[null,null,"Friuli_Venezia_Giulia",null,null,"Società in accomandita semplice (S.a.s.)"]
[null,null,"Liguria",null,null,"Società in nome colletivo (S.n.c.)"]
[null,null,"Emilia_Romagna",null,null,"Società per azioni (S.p.A.)"]
[null,null,"Toscana",null,null,"Altro"]
[null,null,"Umbria"]
[null,null,"Marche"]
[null,null,"Lazio"]
[null,null,"Abruzzo"]
[null,null,"Molise"]
[null,null,"Campania"]
[null,null,"Puglia"]
[null,null,"Basilicata"]
[null,null,"Calabria"]
[null,null,"Sicilia"]
[null,null,"Sardegna"]
[]
[]
[]
[null,null,"Valle_dAosta","Piemonte","Lombardia","Trentino_Alto_Adige","Veneto","Friuli_Venezia_Giulia","Liguria","Emilia_Romagna","Toscana","Umbria","Marche","Lazio","Abruzzo","Molise","Campania","Puglia","Basilicata","Calabria","Sicilia","Sardegna"]
[null,null,"Aosta","Torino","Varese","Bolzano","Verona","Gorizia","Imperia","Piacenza","Massa_Carrara","Perugia","Pesaro e Urbino","Viterbo","L_Aquila","Campobasso","Caserta","Foggia","Potenza","Cosenza","Trapani","Sassari"]
[{"$nulls":3},"Vercelli","Como","Trento","Vicenza","Trieste","Savona","Parma","Lucca","Terni","Ancona","Rieti","Teramo","Isernia","Benevento","Bari","Matera","Catanzaro","Palermo","Nuoro"]
[{"$nulls":3},"Novara","Sondrio",null,"Belluno","Pordenone","Genova","Reggio_nell_Emilia","Pistoia",null,"Macerata","Roma","Pescara",null,"Napoli","Taranto",null,"Reggio_Calabria","Messina","Cagliari"]
[{"$nulls":3},"Cuneo","Milano",null,"Treviso","Udine","La Spezia","Modena","Firenze",null,"Ascoli_Piceno","Latina","Chieti",null,"Avellino","Brindisi",null,"Crotone","Agrigento","Oristano"]
[{"$nulls":3},"Asti","Bergamo",null,"Venezia",null,null,"Bologna","Livorno",null,"Fermo","Frosinone",null,null,"Salerno","Lecce",null,"Vibo_Valentia","Caltanissetta","Sud_Sardegna"]
[{"$nulls":3},"Alessandria","Brescia",null,"Padova",null,null,"Ferrara","Pisa",{"$nulls":6},"Barletta_Andria_Trani",null,null,"Enna"]
[{"$nulls":3},"Biella","Pavia",null,"Rovigo",null,null,"Ravenna","Arezzo",{"$nulls":9},"Catania"]
[{"$nulls":3},"Verbano-Cusio-Ossola","Cremona",{"$nulls":4},"Forlì_Cesena","Siena",{"$nulls":9},"Ragusa"]
[{"$nulls":4},"Mantova",{"$nulls":4},"Rimini","Grosseto",{"$nulls":9},"Siracusa"]
[{"$nulls":4},"Lecco",{"$nulls":5},"Prato"]
[{"$nulls":4},"Lodi"]
[{"$nulls":4},"Monza_e_della_Brianza"]